Cogmind - Beta 15 @@@ ROGUE MODE // 2025.06.15 @ 23:35:09 Player: Miguell Result: Destroyed by D-53 Grenadier with Mini Grenade Launcher Performance ------------- Evolutions (0) 0 Regions Visited (2) 400 Robots Destroyed (17) 85 Value Destroyed (544) 544 Prototype IDs (2) 40 Alien Tech Used (0) 0 Bonus (14) 14 TOTAL SCORE: 1083 Bonus ------- Follower Combat Kills 14 Cogmind --------- Core Integrity 0/250 Matter 300/300 Energy 62/100 System Corruption 9% Temperature Cool (12) Movement Core (200) Ox3 Location -10/Mines Parts ------- > --- POWER (1) -------- (None) > --- PROPULSION (2) --- (None) > --- UTILITY (2) ------ Small Storage Unit > --- WEAPON (2) ------- Beamcaster > --- INVENTORY (8) ---- Light Treads Light Treads Targeting Computer Beam Rifle EM Pulse Cannon Improved Grenade Launcher Peak State ------------ > --- POWER ------------ Light Nuclear Core > --- PROPULSION ------- Carbon-fiber Leg Makeshift Leg > --- UTILITY ---------- Small Storage Unit Hardened Medium Armor Plating > --- WEAPON ----------- Beamcaster Improved Light Cannon > --- INVENTORY -------- Improved Ion Engine Light Treads Light Treads EM Pulse Cannon Light Cannon Shock Bomb Launcher Improved Grenade Launcher [Rating: 22] Favorites ----------- Power Light Nuclear Core Engine Ion Engine Power Core Light Nuclear Core Propulsion Light Treads Treads Light Treads Leg Carbon-fiber Leg Utility Small Storage Unit Device ECM Suite Storage Small Storage Unit Processor Targeting Computer Protection Hardened Medium Armor Plating Weapon Improved Light Cannon Energy Gun Beamcaster Ballistic Gun Light Assault Rifle Ballistic Cannon Improved Light Cannon Launcher Grenade Launcher Build | -11 -10 -10 ------- Run | Yrd Mat Min Slots Evolved . | . . . Power . | . . . Propulsion . | . . . Utility . | . . . Weapon . | . . . Parts Attached 27 | 4 17 6 Power 5 | 1 3 1 Engine 4 | 1 2 1 Core 1 | . 1 . Reactor . | . . . Propulsion 8 | 2 4 2 Treads 6 | 2 4 . Leg 2 | . . 2 Wheel . | . . . Hover . | . . . Flight . | . . . Utility 6 | 1 4 1 Device 2 | . 2 . Storage 1 | 1 . . Processor 1 | . 1 . Hackware . | . . . Protection 2 | . 1 1 Artifact . | . . . Weapon 8 | . 6 2 Energy Gun 2 | . 1 1 Energy Cannon . | . . . Ballistic Gun 2 | . 2 . Ballistic Cannon 2 | . 2 . Launcher 2 | . 1 1 Special Weapon . | . . . Impact Weapon . | . . . Slashing Weapon . | . . . Piercing Weapon . | . . . Special Melee Weapon . | . . . Unidentified Prototypes . | . . . Parts Lost 12 | . 5 7 Power 2 | . . 2 Propulsion 4 | . 2 2 Utility 2 | . 1 1 Weapon 4 | . 2 2 Highest Loss Streak 7 | . 5 7 To Critical Strikes . | . . . Average Backups 6 | 3 6 7 Power 1 | 1 1 . Propulsion 1 | 1 1 2 Utility 1 | . 1 1 Weapon 2 | 1 2 3 Tool/Special . | . . . Unused Backups 12 | . 4 8 Power 1 | . 1 . Propulsion 3 | . 2 1 Utility 2 | . 1 1 Weapon 6 | . . 6 Tool/Special . | . . . Average Slot Usage (%) 92 | . 90 99 Engine 4 | . 5 . Core 9 | . 8 14 Treads 18 | . 23 5 Leg 6 | . . 22 Device 5 | . 7 . Storage 14 | . 14 14 Processor 4 | . 2 7 Protection 2 | . . 6 Energy Gun 4 | . 1 11 Ballistic Gun 5 | . 7 . Ballistic Cannon 15 | . 15 16 Peak Build Rating 22 | 4 12 22 Average Rating 11 | 3 9 19 On Entrance 5 | . 4 12 Naked Turns . | . . . Heaviest Build 27 | 8 19 27 Greatest Support 40 | 40 40 40 Greatest Overweight (x) 5 | 2 5 1 Average Overweight (x) . | . . . Largest Inventory Capacity 8 | 8 8 8 Average Capacity 7 | 7 8 8 Most Carried 8 | 5 8 8 Average Carried 6 | 4 6 7 Final Capacity 8 | 8 8 8 Final Carried 8 | 5 8 6 Class Distribution -------------------- 76% | Mutant 23% | Scavenger-Mutant Dominant Class ---------------- Mutant | -10/Materials Scavenger-Mutant | -10/Mines Resources | -11 -10 -10 ----------- Run | Yrd Mat Min Matter Collected 662 | 240 315 107 Remotely . | . . . Salvage Created 412 | . 412 . Parts 30 | . 30 . Haulers Intercepted . | . . . Recyclers Shooed . | . . . Parts Field Recycled . | . . . Retrieved Matter . | . . . Parts Self-Destructed . | . . . Prevented . | . . . Kills | -11 -10 -10 ------- Run | Yrd Mat Min Combat Hostiles Destroyed 13 | . 13 . Guns 7 | . 7 . Cannons 6 | . 6 . Classes Destroyed 5 | . 5 . Worker 1 | . 1 . Builder 1 | . 1 . Watcher 2 | . 2 . Swarmer 3 | . 3 . Grunt 10 | . 10 . Best Kill Streak 4 | . 4 . Combat Bots Only 3 | . 3 . Max Kills in Single Turn 2 | . 2 . Gunslinging 1 | . 1 . Exploded . | . . . Melee . | . . . Uniques/NPCs Destroyed . | . . . Combat | -11 -10 -10 -------- Run | Yrd Mat Min Hostile Shots Fired 143 | . 128 15 Missed 32 | . 31 1 Hits 111 | . 97 14 Projectile 111 | . 97 14 AOE 13 | . . 13 Critical Strikes 1 | . 1 . Damage Taken 1947 | . 1156 791 Core 253 | . 221 32 Absorbed by Shields . | . . . Core Remaining (%) 100 | 100 . . Volleys Fired 52 | . 50 2 Largest 2 | . 2 1 Hottest 83 | . 83 75 Shots Fired 99 | . 97 2 Gun 46 | . 44 2 Cannon 50 | . 50 . Launcher 3 | . 3 . Special . | . . . Kinetic 87 | . 87 . Thermal 9 | . 7 2 Explosive 3 | . 3 . Electromagnetic . | . . . Robot Hit Streak 13 | . 13 1 Robot Miss Streak 5 | . 5 5 Penetration Max . | . . . Secondary Targets 2 | . 2 . Max Gunslinging Chain 1 | . 1 . Shots Hit Robots 48 | . 47 1 Core Hits 27 | . 27 . Critical Kills . | . . . Critical Parts Destroyed . | . . . Critical Strikes 2 | . 2 . Burn 1 | . 1 . Blast 1 | . 1 . Melee Attacks . | . . . Impact . | . . . Slashing . | . . . Piercing . | . . . Sneak Attacks . | . . . Combat Hostiles . | . . . Follow-up Attacks . | . . . Damage Inflicted 955 | . 933 22 Guns 269 | . 247 22 Cannons 513 | . 513 . Explosions 173 | . 173 . Melee . | . . . Ramming . | . . . Kinetic 708 | . 708 . Thermal 74 | . 52 22 Explosive 173 | . 173 . Electromagnetic . | . . . Impact . | . . . Slashing . | . . . Piercing . | . . . Highest Corruption 9 | . . 9 Average Corruption 9 | . . 9 Corruption Purged . | . . . Corruption Blocked . | . . . Overload Shots . | . . . Overflow Damage . | . . . Projectiles . | . . . Explosions . | . . . Melee . | . . . Knockbacks 10 | . 10 . Impact . | . . . Kinetic 9 | . 9 . Secondary 1 | . 1 . Self-Inflicted Damage . | . . . Shots . | . . . Rammed . | . . . Targets Rammed . | . . . Kicked . | . . . Crushed . | . . . Highest Temperature 138 | . 138 41 Average Temperature 39 | . 40 20 Received Heat Transfer 624 | . 624 . Siege Activations . | . . . Martial Activations . | . . . Shielding Activations . | . . . Robots Disrupted . | . . . Combat Hostiles . | . . . Robots Corrupted . | . . . Combat Hostiles . | . . . Parts Fried . | . . . Impact Corruptions . | . . . Robots Melted . | . . . Combat Hostiles . | . . . Parts Melted . | . . . Heat Transferred 259 | . 222 37 Parts Sabotaged . | . . . Parts Stolen . | . . . Parts Stripped . | . . . Power Chain Reactions . | . . . Alert | -11 -10 -10 ------- Run | Yrd Mat Min Maximum Alert Level . | . . . Low Security (%) 100 | 100 100 100 Level 1 . | . . . Level 2 . | . . . Level 3 . | . . . Level 4 . | . . . Level 5 . | . . . High Security . | . . . Max Security . | . . . Peak Influence 190 | . 94 190 Initial 20 | . . 20 Average 60 | . 41 119 Influence Increases 665 | . 430 235 Destroy 0b10 Robot/C 300 | . 260 40 Destroy 0b10 Robot/NC 20 | . 20 . Destroy Leader 74 | . 74 . Allied During Kill 4 | . . 4 Successful Hack 10 | . 10 . Disable Machine 165 | . 45 120 Destroy Structure 32 | . 21 11 Lose Combat Pursuer 60 | . . 60 Influence Decreases 665 | . 377 288 Entered New Map 33 | . . 33 Time Decay 525 | . 327 198 Lost Part 107 | . 50 57 Squads Dispatched 5 | . 5 . Investigation 2 | . 2 . Extermination . | . . . Reinforcement 3 | . 3 . Assault . | . . . Garrison . | . . . Intercept . | . . . Searches Triggered . | . . . Construction Impeded . | . . . Haulers Reinforced . | . . . Active Scanning Responses . | . . . Cargo Convoy Interrupts . | . . . Stealth | -11 -10 -10 --------- Run | Yrd Mat Min Distress Signals 1 | . 1 . Communications Jammed . | . . . Distress Signals . | . . . Times Spotted 32 | . 25 7 Peak Tracking Total 4 | . 4 2 Tactical Retreats 5 | . 1 4 Traps | -11 -10 -10 ------- Run | Yrd Mat Min Traps Triggered 2 | . 1 1 Indirectly . | . . . Trap Hack Attempts . | . . . Triggered . | . . . Disarmed . | . . . Reprogrammed . | . . . Reused . | . . . Traps Extracted . | . . . Installed . | . . . Triggered . | . . . Machines | -11 -10 -10 ---------- Run | Yrd Mat Min Machines Disabled 11 | . 3 8 Max in Single Turn 1 | . 1 . Machines Repaired . | . . . Machines Dismantled . | . . . Machines Sabotaged . | . . . Overloaded Fab Kills . | . . . Hacking | -11 -10 -10 --------- Run | Yrd Mat Min Machines Accessed 4 | . 3 1 Terminals 2 | . 2 . Fabricators . | . . . Repair Stations . | . . . Recycling Units 1 | . 1 . Scanalyzers . | . . . Garrison Access . | . . . Total Hacks 19 | . 18 1 Successful 13 | . 12 1 Failed 6 | . 6 . Catastrophic 2 | . 2 . Database Lockouts . | . . . Manual 7 | . 7 . Terminals 9 | . 9 . Fabricators . | . . . Repair Stations . | . . . Recycling Units 9 | . 9 . Scanalyzers . | . . . Garrison Access . | . . . Terminal Hacks 6 | . 5 1 Record 1 | . 1 . Prototype ID Bank 1 | . 1 . Open Door 1 | . . 1 Emergency Access Points 1 | . 1 . Dispatch Records 1 | . 1 . Zone Layout 1 | . 1 . Fabricator Hacks . | . . . Repair Station Hacks . | . . . Recycling Unit Hacks 7 | . 7 . Recycle Component 2 | . 2 . Process 2 | . 2 . Report Inventory 2 | . 2 . Retrieve Matter 1 | . 1 . Scanalyzer . | . . . Garrison Access Hacks . | . . . Unauthorized Hacks . | . . . Terminals . | . . . Fabricators . | . . . Repair Stations . | . . . Recycling Units . | . . . Scanalyzers . | . . . Garrison Access . | . . . Data Cores Recovered . | . . . Used . | . . . Hacking Detections 2 | . 2 . Full Trace Events 1 | . 1 . Feedback Events . | . . . Feedback Blocked . | . . . Robot Schematics Acquired . | . . . Robots Built . | . . . Authchips . | . . . Time . | . . . Total Robot Build Rating . | . . . Part Schematics Acquired . | . . . Parts Built . | . . . Authchips . | . . . Time . | . . . Total Part Build Rating . | . . . Parts Repaired . | . . . Time . | . . . Parts Recycled 2 | . 2 . Recycled Matter 88 | . 88 . Retrieved Matter 88 | . 88 . Retrieved Components . | . . . Parts Scanalyzed . | . . . Part Schematics Acquired . | . . . Parts Damaged . | . . . Bothacking | -11 -10 -10 ------------ Run | Yrd Mat Min Used RIF Installer . | . . . Robots Hacked . | . . . Non-combat . | . . . Combat . | . . . Robot Hacks Applied . | . . . Relay Couplers Released . | . . . Fabnet Peak Effective % . | . . . Robots Rewired . | . . . Allies Hacked . | . . . Hacks Repelled . | . . . Allies | -11 -10 -10 -------- Run | Yrd Mat Min Total Allies 2 | . . 2 Largest Group 2 | . . 2 Highest-Rated Group 46 | . . 46 Highest-Rated Ally 31 | . . 31 Total Orders . | . . . Ally Attacks 2 | . . 2 Total Damage 347 | . . 347 Kills 3 | . . 3 Allies Corrupted . | . . . Allies Melted . | . . . Intel | -11 -10 -10 ------- Run | Yrd Mat Min Active Infowar (turns) 537 | . 537 . Terrain 251 | . 251 . ECM 286 | . 286 . Robot Analysis Total . | . . . Derelict Logs Recovered 1 | . . 1 Drone Launches . | . . . Drone Recoveries . | . . . Exploration | -11 -10 -10 ------------- Run | Yrd Mat Min Turns Passed 1485 | 86 986 413 Spaces Moved 813 | 54 472 287 Core 49 | 14 35 . Treads 521 | 40 437 44 Legs 243 | . . 243 Wheels . | . . . Hover . | . . . Flight . | . . . Fastest Speed 50 | 50 160 130 Average Speed 155 | 137 170 135 Slowest Speed 300 | 160 300 190 Overloaded Moves . | . . . Propulsion Burnouts . | . . . Robots Hopped . | . . . Potential Cave-ins . | . . . Cave-ins Triggered 1 | . . 1 Exploration Rate (%) 50 | 5 82 64 Regions Visited 2 Branch Regions 1 Pre-discovered Areas . | . . . Known Exits Taken . | . . . Unknown Exits Taken 2 | 1 1 . Scrap Searched 1 | . . 1 Spaces Dug . | . . . Terrain Destroyed 20 | . 20 . Melee . | . . . Projectile 5 | . 5 . AOE 15 | . 15 . Terrain Rammed . | . . . Walls Destroyed . | . . . Machines Disabled . | . . . Actions | -11 -10 -10 --------- Run | Yrd Mat Min Total 944 | 66 565 313 Wait . | . . . Move 811 | 53 471 287 Hop . | . . . Pick Up 35 | 9 18 8 Fast Attach 4 | . 2 2 Attach 12 | 4 6 2 Detach 1 | . . 1 Swap 11 | . 9 2 Drop 18 | . 9 9 Fire 52 | . 50 2 Melee . | . . . Ram . | . . . Kick . | . . . Crush . | . . . Escape Stasis . | . . . Rewire . | . . . Trap . | . . . Miscellaneous . | . . . Route ------- -11/Scrapyard -10/Materials (discovered 2 exits: [*Mat] / *Min) -10/Mines History --------- Turn | Location | Event 3 | -11/Scrapyard | Discovered new exit (range 16) 87 | -11/Scrapyard | Entered Materials 317 | -10/Materials | Build established: Mutant 394 | -10/Materials | Discovered new exit (range 15) 438 | -10/Materials | Core integrity fell below 50% 491 | -10/Materials | Lost 5 parts (2n1u2w) 793 | -10/Materials | Core integrity fell below 20% 1060 | -10/Materials | Discovered new exit (range 6) 1073 | -10/Materials | Entered Mines 1207 | -10/Mines | Met a Derelict who couldn't figure out how to use a Trap Extractor 1272 | -10/Mines | Joined a pair of Derelicts in attacking an 0b10 outpost 1432 | -10/Mines | Build established: Scavenger-Mutant 1458 | -10/Mines | Assembled infested the area 1459 | -10/Mines | Learned 2 Materials zone layouts 1485 | -10/Mines | Crushed by falling debris 1486 | -10/Mines | Destroyed by D-53 Grenadier with Mini Grenade Launcher Last Messages --------------- Data stored: Materials zone layouts (x2). 01466_ K-01 Serf collects debris. 01469_ C-30 ARC bursts open, deploying its payload. 01469_ D-53 Grenadier unfolds itself. 01472_ K-01 Serf collects debris. 01472_ U-05 Engineer lays Concrete. 01473_ U-05 Engineer destroyed. 01478_ Imp. Light Cannon destroyed. 01480_ Lgt. Nuclear Core destroyed. 01484_ Mak. Leg destroyed. 01485_ The unstable cave ceiling collapses. 01485_ Crushed by falling debris. 01485_ Hrd. Medium Armor Plating destroyed. 01485_ System corrupted by crushing effect (+5). 01485_ Shock Bomb Launcher destroyed. 01485_ System corrupted by crushing effect (+2). 01485_ Carbon-fiber Leg destroyed. 01485_ System corrupted by crushing effect (+1). 01485_ Imp. Ion Engine destroyed. 01485_ System corrupted by crushing effect (+1). Map ----- +----------------------------------------------------+ | ????????????????????????????????????????????? | | ????????????????????????????????????????????? | | ????????????????????????????????????????????? | | ????????????????????????????????????????????? | | ????????????????????????????????????????????? | | ????????????????????????????????????????????? | | ????????????????????????????????????????????? | | ????????????????????????????????????????????? | | ????????????????????????????????????????????? | | ????????????????????????????????????????????? | | ????????????????????????????????????????????? | | ????????????????????????????????????????????? | | ????????????????????????????????????????????? | | ??????????????????????????????????????? ????? | | #??????????????????????????????###???? #???? | | ##????????????????????????###?# #### ##??? | | #??????????????????????### ## % #??? | | #?????????????????##??## #??? | | #????????????????## #?# #???? | | ######????????????# ## d #????? | | ### ##??????????## #????? | | ## #??????????# d #??????????? | | #??????????# #??????????? | | ##??????????## ##??????????? | | #????????????## #???????????? | | ##?????????????### @ ##???????????? | | ### #???????????????# #????????????? | | #?# #??????????????## ###???????????? | | #?# #?????????????? # #???????????? | | ### ##?????????? # #???????????? | | #?????????# ## #???????????? | | ### #?????????## # ## # # ## #???????????? | | #?# #??????????##?# ####### ## ##??????????? | | ## #?????????????# #???### ##?????????? | | # #?????????????# ##### #?????????? | | ###???????????# ##????????? | | """ ###?????????# #### ##???????? | | """ ########### #??## #???????? | | """ #???### #????? | | ###### #####?????## #????? | | # ##????# #??????????## #????? | | ## ##?????# #???????????# ###????? | | ?## ##??????# #???????????# ##??????? | | ??######???????# #???????????# #???????? | | ???????????????# #???????????# ##???????? | | ??????????????? #??????????? ##????????? | | ???????????????###??????????? #?????????? | | ?????????????????????????????""" #?????????? | | ?????????????????????????????""" #?????????? | | ?????????????????????????????""" #?????????? | +----------------------------------------------------+ Best States ------------- Heat Dissipation 25 Energy Generation 14 Energy Capacity 250 Matter Stores 300 Matter Capacity 300 Sight Range 16 Terrain Scan Range 14 Terrain Scan Density 10 ECM Strength 1 Armor Coverage 225 Utility Shielding 33 Evasion (%) 55 Targeting Accuracy 5 Recoil Reduction 2 Item Schematics ----------------- None Robot Schematics ------------------ None Fabricated ------------ Nothing Repaired ---------- Nothing Alien Tech Used ----------------- None Achievements -------------- None Challenges ------------ None Game ------ Seed AlertVariableMediator Manual? 0 Play Time 00:22:51 Cumulative 2.3 hours Start 2025.06.15 @ 23:07:57 End 2025.06.15 @ 23:35:09 Sessions 1 Manual Loads 0 Difficulty Rogue Special Mode None Game No. 6 Rogue 6 Adventurer 0 Explorer 0 Win Type - Total 0 Types 0/0/0/0/0/0/0/0/0/0 Lore% 1 Gallery% 6 Achievement% 7 Wizard Run 0 Options --------- Layout 1 ASCII 0 Keyboard 0 Movement Mouse Keybinds 0 Fullscreen 2 Font 24/Smallcaps Map View 76x35 Zoom Use 0% Tactical HUD 1 Map Filters NONE Filters NONE Steam 1 RUN: 44984ea9-f84c-4bba-9e78-3cd56ddc946f